fUST/lending_fUST_20250505
["ID","MTS","AMOUNT","RATE_DAILY","PERIOD"]
[359884324,1746402640419,-151.0,0.00035432,14]
[359884325,1746402640428,-191.860782,0.00035432,14]
[359884326,1746402640438,-191.860782,0.00035432,14]
[359884327,1746402640447,-151.0,0.00035432,14]
[359884328,1746402640457,-151.0,0.00035432,14]
[359884329,1746402640467,-151.0,0.00035432,14]
[359884330,1746402640477,-501.19080263,0.00035441,10]
[359884331,1746402640486,-160.0,0.00035441,10]
[359884332,1746402640495,-252715.31794268,0.00035442,2]
[359884333,1746402640504,-151.0,0.00035442,14]
[359884334,1746402640514,-151.0,0.00035442,14]
[359884335,1746402640524,-311.400041,0.00035442,2]
[359884336,1746402640533,-311.400041,0.00035442,2]
[359884337,1746402640543,-151.0,0.00035442,14]
[359884338,1746402640552,-961.683749,0.00035442,14]
[359884339,1746402640562,-151.0,0.00035442,14]
[359884340,1746402640571,-229.403115,0.00035442,14]
[359884341,1746402640580,-151.0,0.00035442,14]
[359884342,1746402640590,-229.403115,0.00035442,14]
[359884343,1746402640600,-151.0,0.00035442,14]
[359884344,1746402640610,-151.0,0.00035442,14]
[359884345,1746402640619,-151.0,0.00035442,14]
[359884346,1746402640629,-151.0,0.00035442,14]
[359884347,1746402640638,-301.499318,0.00035442,14]
[359884348,1746402640648,-412.838004,0.00035442,14]
[359884349,1746402640658,-412.838004,0.00035442,14]
[359884350,1746402640667,-151.0,0.00035442,14]
[359884351,1746402640676,-151.0,0.00035442,14]
[359884352,1746402640685,-154.785362,0.00035442,14]
[359884353,1746402640694,-151.0,0.00035442,14]
[359884354,1746402640703,-268.524168,0.00035442,14]
[359884355,1746402640713,-268.524168,0.00035442,14]
[359884356,1746402640723,-294.165081,0.00035442,14]
[359884357,1746402640732,-6438.722607,0.00035442,2]
[359884358,1746402640742,-294.165081,0.00035442,14]
[359884359,1746402640751,-6438.722607,0.00035442,2]
[359884360,1746402640760,-151.0,0.00035442,14]
[359884361,1746402640770,-151.0,0.00035442,14]
[359884362,1746402640779,-151.0,0.00035442,14]
[359884363,1746402640789,-151.0,0.00035442,14]
[359884364,1746402640798,-225.058442,0.00035442,14]
[359884365,1746402640807,-225.058442,0.00035442,14]
[359884366,1746402640817,-152.136914,0.00035442,14]
[359884367,1746402640826,-191.860782,0.00035442,14]
[359884368,1746402640836,-191.860782,0.00035442,14]
[359884369,1746402640845,-151.0,0.00035442,14]
[359884370,1746402640855,-151.0,0.00035442,14]
[359884371,1746402640864,-151.0,0.00035442,14]
[359884372,1746402640873,-500.0,0.00035473,5]
[359884373,1746402640883,-500.0,0.00035473,2]
[359884374,1746402640892,-500.0,0.00035473,5]
[359884375,1746402640901,-500.0,0.00035473,5]
[359884376,1746402640912,-799.7497978,0.00035486,32]
[359884377,1746402640922,-799.7497978,0.00035762,33]
[359884378,1746402640932,-171.26004058,0.00035799,10]
[359884379,1746402640941,-160.80145961,0.00035799,10]
[359884380,1746402640951,-30750.5,0.000358,30]
[359884381,1746402640960,-545.0,0.00035849,2]
[359884382,1746402640969,-2248.0,0.00035849,2]
[359884383,1746402640979,-714.644,0.00035849,2]
[359884384,1746402640988,-421.74012052,0.00036,7]
[359884385,1746402640998,-160.0,0.00036,7]
[359884386,1746402641007,-799.7497978,0.00036038,34]
[359884387,1746402641016,-700.0,0.00036083,60]
[359884388,1746402641026,-2494.5814771,0.00036164,2]
[359884389,1746402641035,-2479.41,0.000362,30]
[359884390,1746402641045,-233.0,0.00036274,3]
[359884391,1746402641055,-799.7497978,0.00036314,34]
[359884392,1746402641065,-160.0,0.0003639,6]
[359884393,1746402641074,-160.0,0.0003644,2]
[359884394,1746402641083,-182.19332975,0.00036441,2]
[359884395,1746402641093,-783.0,0.00036447,2]
[359884396,1746402641103,-5000.0,0.000365,2]
[359884397,1746402641112,-10024.73,0.000365,30]
[359884398,1746402641121,-185.406425,0.0003653,120]
[359884399,1746402641131,-799.7497978,0.0003659,35]
[359884400,1746402641140,-3895.62,0.000366,7]
[359884401,1746402641150,-700.0,0.00036631,60]
[359884402,1746402641159,-162.288935,0.00036658,2]
[359884403,1746402641169,-30750.5,0.000368,30]
[359884404,1746402641179,-171.55,0.000368,31]
[359884405,1746402641188,-171.55,0.000368,31]
[359884406,1746402641197,-171.55,0.000368,31]
[359884407,1746402641206,-171.55,0.000368,31]
[359884408,1746402641216,-171.55,0.000368,31]
[359884409,1746402641225,-171.55,0.000368,31]
[359884410,1746402641234,-171.55,0.000368,31]
[359884411,1746402641244,-171.55,0.000368,31]
[359884412,1746402641254,-171.55,0.000368,31]
[359884413,1746402641263,-171.55,0.000368,31]
[359884414,1746402641272,-171.55,0.000368,31]
[359884415,1746402641282,-171.55,0.000368,31]
[359884416,1746402641291,-171.55,0.000368,31]
[359884417,1746402641301,-171.55,0.000368,31]
[359884418,1746402641310,-171.55,0.000368,31]
[359884419,1746402641320,-171.55,0.000368,31]
[359884420,1746402641329,-171.55,0.000368,31]
[359884421,1746402641339,-171.55,0.000368,31]
[359884422,1746402641349,-171.55,0.000368,31]
[359884423,1746402641358,-171.55,0.000368,31]
[359884424,1746402641368,-171.55,0.000368,31]
[359884425,1746402641377,-171.55,0.000368,31]
[359884426,1746402641386,-171.55,0.000368,31]
[359884427,1746402641396,-171.55,0.000368,31]
[359884428,1746402641406,-160.0,0.0003681,3]
[359884429,1746402641415,-1328.11795346,0.00036814,2]
[359884430,1746402641425,-159.23740321,0.00036822,2]
[359884431,1746402641435,-1034.11296031,0.00036834,5]
[359884432,1746402641444,-1000.0,0.00036852,5]
[359884433,1746402641453,-500.0,0.00036852,5]
[359884434,1746402641463,-1000.0,0.00036852,5]
[359884435,1746402641473,-1000.0,0.00036852,5]
[359884436,1746402641482,-1000.0,0.00036852,5]
[359884437,1746402641491,-799.7497978,0.00036866,35]
[359884438,1746402641501,-1207.19951036,0.0003687,2]
[359884439,1746402641510,-151.0,0.000369,10]
[359884440,1746402641520,-1200.0,0.00037004,5]
[359884441,1746402641529,-1000.0,0.00037052,5]
[359884442,1746402641539,-151.0,0.00037081,2]
[359884443,1746402641548,-207.4,0.00037081,2]
[359884444,1746402641557,-799.7497978,0.00037141,36]
[359884445,1746402641567,-700.0,0.00037179,60]
[359884446,1746402641576,-701.55683969,0.00037252,5]
[359884447,1746402641585,-1122.74790831,0.00037252,5]
[359884448,1746402641699,-1001.32262758,0.00037252,5]
[359884449,1746402641709,-2479.41,0.000374,30]
[359884450,1746402641719,-799.7497978,0.00037417,36]
[359884451,1746402641729,-271.5433147,0.00037425,30]
[359884452,1746402641739,-1000.0,0.00037552,5]
[359884453,1746402641748,-1000.0,0.00037552,5]
[359884454,1746402641758,-398.62854529,0.00037552,5]
[359884455,1746402641768,-1000.0,0.00037552,5]
[359884456,1746402641777,-500.0,0.00037552,5]
[359884457,1746402641786,-977.04403513,0.00037552,5]
[359884458,1746402641796,-500.0,0.00037552,5]
[359884459,1746402641806,-160.0,0.00037563,7]
[359884460,1746402641815,-10243.10514404,0.000376,2]
[359884461,1746402641824,-151.0,0.000376,13]
[359884462,1746402641833,-10024.73,0.000376,30]
[359884463,1746402641844,-1000.0,0.00037652,5]
[359884464,1746402641854,-1000.0,0.00037652,5]
[359884465,1746402641864,-1000.0,0.00037652,5]
[359884466,1746402641874,-1000.0,0.00037652,5]
[359884467,1746402641885,-799.7497978,0.00037693,37]
[359884468,1746402641895,-726.82,0.00037705,30]
[359884469,1746402641906,-700.0,0.00037727,60]
[359884470,1746402641919,-500.0,0.00037773,5]
[359884471,1746402641929,-500.0,0.00037773,5]
[359884472,1746402641940,-500.0,0.00037773,5]
[359884473,1746402641950,-300.09959214,0.00037773,5]
[359884474,1746402641961,-151.0,0.00037773,14]
[359884475,1746402641970,-151.0,0.00037773,14]
[359884476,1746402641980,-151.0,0.00037773,14]
[359884477,1746402641991,-151.0,0.0003779,14]
[359884478,1746402642002,-151.0,0.0003779,14]
[359884479,1746402642012,-311.400041,0.0003779,2]
[359884480,1746402642022,-311.400041,0.0003779,2]
[359884481,1746402642031,-151.0,0.0003779,14]
[359884482,1746402642041,-961.683749,0.0003779,14]
[359884483,1746402642051,-151.0,0.0003779,14]
[359884484,1746402642061,-229.403115,0.0003779,14]
[359884485,1746402642070,-151.0,0.0003779,14]
[359884486,1746402642080,-229.403115,0.0003779,14]
[359884487,1746402642090,-168.106866,0.0003779,14]
[359884488,1746402642100,-210.994871,0.0003779,14]
[359884489,1746402642112,-151.0,0.0003779,14]
[359884490,1746402642121,-191.860782,0.0003779,14]
[359884491,1746402642131,-191.860782,0.0003779,14]
[359884492,1746402642140,-500382.18365368,0.000378,2]
[359884513,1746402645617,-293.13,0.00036328,2]
[359884514,1746402645627,-840.73505031,0.000378,2]
[359884515,1746402645674,-130327.32725929,0.000378,2]
[359884574,1746402647086,-482.40307759,0.000378,2]
[359884575,1746402647148,-26712.35684617,0.000378,2]
[359884593,1746403441167,630.0,0.00019,2]
[359884597,1746403631710,-300.0,0.00025199,2]
[359884598,1746403631735,-327.0,0.00025199,2]
[359884599,1746403631757,-300.0,0.00025199,2]
[359884600,1746403631779,-902.30245813,0.000252,2]
[359884601,1746403641110,-229.13040031,0.000252,2]
[359884602,1746403654133,-15422.56714156,0.000252,2]
[359884603,1746403654159,-213.26661294,0.000259,14]
[359884604,1746403654186,-213.26661274,0.00026417,15]
[359884605,1746403654210,-213.26661274,0.00026934,16]
[359884606,1746403654232,-420.0,0.00027293,2]
[359884607,1746403654254,-686.466896,0.00027397,2]
[359884608,1746403654278,-213.26661274,0.00027452,17]
[359884609,1746403654302,-213.26661274,0.00027969,18]
[359884610,1746403654326,-213.26661274,0.00028486,19]
[359884611,1746403654347,-12300.1971806,0.00028894,2]
[359884612,1746403654369,-337.0966198,0.00028894,2]
[359884613,1746403654394,-213.26661274,0.00029003,20]
[359884614,1746403654416,-278.00394718,0.00029115,2]
[359884615,1746403654442,-209.4136979,0.0002917,2]
[359884616,1746403654465,-217.90215726,0.00029214,2]
[359884617,1746403654499,-500.0,0.00029214,2]
[359884618,1746403654526,-208.79583699,0.00029214,2]
[359884619,1746403654562,-289.34802061,0.00029214,2]
[359884620,1746403654584,-1000.0,0.00029215,2]
[359884621,1746403654606,-173.0,0.00029315,3]
[359884622,1746403654627,-172.775189,0.00029383,2]
[359884623,1746403654651,-213.26661274,0.00029521,21]
[359884624,1746403654672,-587.0,0.00029562,2]
[359884625,1746403654692,-157.6,0.0003,2]
[359884626,1746403654717,-213.26661274,0.00030038,22]
[359884627,1746403654738,-631.422,0.00030137,2]
[359884628,1746403654759,-380.0,0.00030412,2]
[359884629,1746403654784,-213.26661274,0.00030555,23]
[359884630,1746403654805,-185.406425,0.00031001,120]
[359884631,1746403654830,-213.26661274,0.00031072,24]
[359884632,1746403654851,-428.711574,0.00031157,2]
[359884633,1746403654872,-250.0,0.0003122,2]
[359884634,1746403654894,-160.0,0.00031541,2]
[359884635,1746403654918,-213.26661274,0.0003159,25]
[359884636,1746403654940,-182.19332975,0.00031769,2]
[359884637,1746403654961,-160.0,0.0003177,2]
[359884638,1746403654984,-823.0,0.00032019,2]
[359884639,1746403655010,-213.26661274,0.00032107,26]
[359884640,1746403655244,-213.26661274,0.00032624,27]
[359884641,1746403655265,-164.65461376,0.00032877,2]
[359884642,1746403655289,-408.37995496,0.00032877,7]
[359884643,1746403746153,-300.0,0.00024999,2]
[359884644,1746403746174,-19110.0,0.00025,30]
[359884645,1746403746195,-581.23836244,0.00025099,2]
[359884646,1746403746215,-250.0,0.00025099,2]
[359884647,1746403746237,-420.0,0.00027082,2]
[359884648,1746403746258,-1342.95154642,0.00028037,2]
[359884649,1746403746279,-587.0,0.00029339,2]
[359884650,1746403746299,-160.0,0.00031421,2]
[359884651,1746403746320,-426.57137474,0.00031784,2]
[359884652,1746403747298,-396.42862526,0.00031784,2]
[359884653,1746403747321,-500.0,0.00032877,7]
[359884654,1746403747344,-500.0,0.00032877,7]
[359884655,1746403747368,-198.75994702,0.00032877,7]
[359884656,1746403747389,-1342.95154642,0.00033037,2]
[359884657,1746403747414,-213.26661274,0.00033141,28]
[359884658,1746403747435,-686.466896,0.00033165,2]
[359884659,1746403747457,-183.532,0.00033314,35]
[359884660,1746403747482,-213.26661274,0.00033659,29]
[359884661,1746403747504,-24900.0,0.0003377,2]
[359884662,1746403747526,-843.77466335,0.00034,2]
[359884663,1746403747557,-152.53,0.000341,31]
[359884664,1746403747585,-152.53,0.000341,31]
[359884665,1746403747613,-152.53,0.000341,31]
[359884666,1746403747643,-152.53,0.000341,31]
[359884667,1746403747673,-152.53,0.000341,31]
[359884668,1746403747703,-152.53,0.000341,31]
[359884669,1746403747730,-213.26661274,0.00034176,30]
[359884670,1746403747753,-1152.0,0.00034433,2]
[359884671,1746403747781,-213.26661274,0.00034693,31]
[359884672,1746403747804,-843.77466334,0.00034843,2]
[359884673,1746403747827,-284.8379239,0.00034849,120]
[359884674,1746403747848,-403.0,0.0003493,2]
[359884675,1746403747870,-151.0,0.0003499,14]
[359884676,1746403747893,-450.067054,0.00035,14]
[359884677,1746403747916,-450.067054,0.00035,14]
[359884686,1746403818252,152.52,0.000341,31]
[359884687,1746403818340,152.52,0.000341,31]
[359884688,1746403818385,152.52,0.000341,31]
[359884689,1746403818506,152.52,0.000341,31]
[359884690,1746403818540,152.52,0.000341,31]
[359884691,1746403818575,152.52,0.000341,31]
[359884703,1746403832114,-300.0,0.00035399,3]
[359884705,1746403832124,-152.52,0.000354,31]
[359884707,1746403832134,-152.52,0.000354,31]
[359884709,1746403832144,-152.52,0.000354,31]
[359884711,1746403832153,-152.52,0.000354,31]
[359884713,1746403832163,-152.52,0.000354,31]
[359884717,1746403832173,-152.52,0.000354,31]
[359884720,1746403832182,-152.52,0.000354,31]
[359884723,1746403832192,-152.52,0.000354,31]
[359884726,1746403832201,-152.52,0.000354,31]
[359884729,1746403832210,-152.52,0.000354,31]
[359884732,1746403832219,-152.52,0.000354,31]
[359884735,1746403832229,-152.52,0.000354,31]
[359884738,1746403832239,-151.0,0.00035432,14]
[359884741,1746403832248,-151.0,0.00035442,14]
[359884744,1746403832257,-450.067054,0.00035442,14]
[359884746,1746403832266,-450.067054,0.00035442,14]
[359884748,1746403832276,-213.26661274,0.000359,33]
[359884750,1746403832285,-500.0,0.00036083,60]
[359884752,1746403832294,-160.0,0.00036294,2]
[359884754,1746403832303,-160.0,0.00036296,2]
[359884756,1746403832314,-160.0,0.00036296,2]
[359884758,1746403832323,-160.0,0.00036296,2]
[359884760,1746403832333,-182.19332975,0.00036298,2]
[359884762,1746403832342,-151.0,0.00036299,2]
[359884764,1746403832351,-151.0,0.00036299,2]
[359884766,1746403832361,-500.0,0.00036299,2]
[359884768,1746403832370,-245.0,0.00036299,2]
[359884771,1746403832380,-151.0,0.00036299,2]
[359884773,1746403832389,-151.0,0.00036299,2]
[359884775,1746403832399,-151.0,0.00036299,2]
[359884776,1746403832409,-500.0,0.00036299,2]
[359884778,1746403832418,-151.0,0.00036299,2]
[359884781,1746403832428,-151.0,0.00036299,2]
[359884783,1746403832437,-500.0,0.00036326,2]
[359884784,1746403832447,-162.8996145,0.00036326,2]
[359884786,1746403832456,-151.0,0.00036326,2]
[359884788,1746403832465,-500.0,0.00036326,2]
[359884790,1746403832474,-151.0,0.00036326,2]
[359884792,1746403832483,-151.0,0.00036326,2]
[359884794,1746403832493,-150.595,0.00036328,2]
[359884796,1746403832503,-500.0,0.00036354,2]
[359884798,1746403832512,-245.0,0.00036354,2]
[359884801,1746403832522,-500.0,0.00036354,2]
[359884803,1746403832532,-292.53236277,0.00036354,2]
[359884804,1746403832541,-213.26661274,0.00036355,34]
[359884806,1746403832550,-500.0,0.00036381,2]
[359884809,1746403832560,-500.0,0.00036381,2]
[359884811,1746403832572,-500.0,0.00036409,2]
[359884813,1746403832581,-500.0,0.00036409,2]
[359884815,1746403832591,-151.0,0.00036436,2]
[359884817,1746403832601,-500.0,0.00036436,2]
[359884819,1746403832610,-500.0,0.00036463,2]
[359884820,1746403832619,-500.0,0.00036491,2]
[359884822,1746403832629,-500.0,0.00036518,2]
[359884823,1746403832639,-500.0,0.00036546,2]
[359884824,1746403832650,-500.0,0.00036573,2]
[359884825,1746403832660,-416.19166331,0.000366,2]
[359884826,1746403832670,-500.0,0.00036631,60]
[359884827,1746403832679,-204.203,0.0003671,2]
[359884828,1746403832689,-249.539,0.0003671,2]
[359884829,1746403832699,-250.0,0.0003671,2]
[359884830,1746403832709,-256.756,0.0003671,2]
[359884831,1746403832719,-218.335,0.0003671,2]
[359884832,1746403832728,-545.0,0.0003671,2]
[359884833,1746403832737,-707.0,0.0003671,2]
[359884834,1746403832748,-2243.0,0.0003671,2]
[359884835,1746403832757,-152.52,0.000368,31]
[359884836,1746403832767,-152.52,0.000368,31]
[359884837,1746403832777,-152.52,0.000368,31]
[359884838,1746403832787,-152.52,0.000368,31]
[359884839,1746403832796,-152.52,0.000368,31]
[359884841,1746403832805,-152.52,0.000368,31]
[359884843,1746403832815,-152.52,0.000368,31]
[359884845,1746403832825,-152.52,0.000368,31]
[359884847,1746403832835,-152.52,0.000368,31]
[359884849,1746403832845,-152.52,0.000368,31]
[359884851,1746403832854,-152.52,0.000368,31]
[359884853,1746403832866,-152.52,0.000368,31]
[359884855,1746403832875,-213.26661274,0.00036809,35]
[359884857,1746403832885,-155.96312,0.00037044,2]
[359884859,1746403832895,-500.0,0.00037179,60]
[359884861,1746403832904,-213.26661274,0.00037264,36]
[359884863,1746403832914,-724.5730674,0.00037479,30]
[359884865,1746403832923,-1656.10689763,0.0003749,2]
[359884867,1746403832933,-1656.10689762,0.00037495,2]
[359884869,1746403832943,-1656.10689762,0.000375,2]
[359884871,1746403832952,-1656.10689762,0.00037505,2]
[359884873,1746403832962,-1656.10689762,0.0003751,2]
[359884875,1746403832971,-322.17,0.0003758,3]
[359884877,1746403832981,-19.62798999,0.0003758,3]
[359884878,1746403832993,-141.46201001,0.0003758,3]
[359884879,1746403833002,-483.27,0.0003758,3]
[359884880,1746403833141,-841.6056368,0.0003759,3]
[359884881,1746403833154,-160.0,0.0003759,3]
[359884882,1746403833164,-421.74012052,0.0003759,3]
[359884883,1746403833174,-182.19332975,0.0003759,3]
[359884884,1746403833185,-18630.88039561,0.0003759,3]
[359884926,1746403839387,-500.0,0.00037589,15]
[359884927,1746403839398,-500.0,0.00037589,15]
[359884928,1746403839408,-280.50058911,0.00037589,7]
[359884929,1746403839418,-312.25822304,0.00037589,15]
[359884930,1746403839427,-384.77616787,0.00037589,15]
[359884931,1746403839438,-75686.41760759,0.0003759,3]
[359884932,1746403839448,-6135.33865042,0.0003759,3]
[359884933,1746403839458,-160.0,0.0003759,3]
[359884934,1746403839468,-73992.51,0.000376,2]
[359884935,1746403839477,-141475.947005,0.000376,3]
[359884936,1746403839487,-9203.00797563,0.000376,3]
[359884937,1746403839497,-100000.0,0.0003761,5]
[359884938,1746403839507,-94317.2980032,0.0003761,3]
[359884939,1746403839516,-15338.346626,0.0003761,3]
[359884940,1746403839526,-200000.0,0.0003762,10]
[359884941,1746403839536,-160.0,0.0003762,10]
[359884942,1746403839547,-182.19332975,0.0003762,10]
[359884943,1746403839557,-224.25377371,0.00037623,2]
[359884945,1746403839568,-559.5,0.00037635,30]
[359884946,1746403839578,-500.0,0.00037673,5]
[359884947,1746403839589,-500.0,0.00037673,5]
[359884948,1746403839599,-208.33265729,0.00037673,5]
[359884949,1746403839608,-500.0,0.00037673,5]
[359884950,1746403839619,-500.0,0.00037673,5]
[359884951,1746403839628,-500.0,0.00037673,5]
[359884952,1746403839638,-500.0,0.00037673,5]
[359884953,1746403839648,-500.0,0.00037673,5]
[359884954,1746403839661,-500.0,0.00037673,5]
[359884955,1746403839673,-160.0,0.0003769,3]
[359884956,1746403839684,-3067.66932521,0.0003769,3]
[359884957,1746403839694,-52014.25938488,0.000377,2]
[359884958,1746403839704,-213.26661274,0.00037718,37]
[359884959,1746403839714,-500.0,0.00037727,60]
[359884960,1746403839725,-3067.66932521,0.0003776,3]
[359884961,1746403839735,-151.0,0.00037772,5]
[359884962,1746403839749,-152.31710252,0.00037772,5]
[359884963,1746403839760,-500.0,0.00037773,5]
[359884964,1746403839770,-625.06769905,0.00037773,5]
[359884965,1746403839780,-500.0,0.00037773,5]
[359884966,1746403839790,-500.0,0.00037773,5]
[359884967,1746403839800,-500.0,0.00037773,2]
[359884968,1746403839809,-500.0,0.00037773,5]
[359884969,1746403839819,-529.17623322,0.00037773,5]
[359884970,1746403839976,-500.0,0.00037773,5]
[359884971,1746403839987,-500.0,0.00037773,2]
[359884972,1746403839997,-151.0,0.00037773,14]
[359884973,1746403840007,-6135.33865042,0.0003778,3]
[359884974,1746403840017,-215.0738,0.00037789,14]
[359884975,1746403840027,-18406.0159513,0.0003779,3]
[359884976,1746403840037,-151.0,0.0003779,14]
[359884978,1746403840047,-342112.71149867,0.000378,2]
[359884980,1746403840056,-227805.52251191,0.000378,2]
[359884982,1746403840065,-151.0,0.000378,14]
[359884983,1746403840074,-275.282959,0.000378,14]
[359884985,1746403840084,-151.0,0.000378,14]
[359884987,1746403840094,-151.0,0.000378,14]
[359884989,1746403840104,-151.0,0.000378,14]
[359884991,1746403840114,-151.0,0.000378,14]
[359884992,1746403840124,-191.860782,0.000378,14]
[359884993,1746403840133,-191.860782,0.000378,14]
[359884995,1746403840143,-191.860782,0.000378,14]
[359884997,1746403840152,-191.860782,0.000378,14]
[359884998,1746403840161,-1503.83,0.000378,30]
[359885000,1746403840171,-2726.93,0.000378,7]
[359885002,1746403840181,-151.0,0.000378,14]
[359885004,1746403840190,-151.0,0.000378,14]
[359885006,1746403840200,-6014.84,0.000378,30]
[359885008,1746403840209,-450.067054,0.000378,14]
[359885010,1746403840218,-450.067054,0.000378,14]
[359885011,1746403840228,-450.067054,0.000378,14]
[359885012,1746403840238,-450.067054,0.000378,14]
[359885013,1746403840247,-21525.35,0.000378,30]
[359885014,1746403840257,-163.50914329,0.000378,2]
[359885015,1746403840268,-151.0,0.000378,14]
[359885016,1746403840278,-161.02698938,0.000378,2]
[359885017,1746403840288,-151.0,0.000378,14]
[359885018,1746403840298,-151.795172,0.000378,14]
[359885019,1746403840308,-151.0,0.000378,14]
[359885020,1746403840318,-151.0,0.000378,14]
[359885021,1746403840328,-151.0,0.000378,14]
[359885022,1746403840338,-151.0,0.000378,14]
[359885023,1746403840347,-151.0,0.000378,14]
[359885024,1746403840357,-151.0,0.000378,14]
[359885025,1746403840367,-151.0,0.000378,14]
[359885027,1746403840376,-151.0,0.000378,14]
[359885029,1746403840386,-151.0,0.000378,14]
[359885031,1746403840397,-151.0,0.000378,14]
[359885033,1746403840407,-151.0,0.000378,14]
[359885035,1746403840416,-194.390749,0.000378,14]
[359885038,1746403840427,-194.390749,0.000378,14]
[359885040,1746403840437,-726.82,0.00037855,84]
[359885042,1746403840447,-1535.7113413,0.00037876,4]
[359885044,1746403840456,-163.4214071,0.0003789,30]
[359885046,1746403840465,-315.612341,0.0003789,30]
[359885048,1746403840474,-153.0,0.0003789,30]
[359885049,1746403840483,-153.0,0.0003789,30]
[359885052,1746403840493,-153.0,0.0003789,30]
[359885054,1746403840502,-153.0,0.0003789,30]
[359885056,1746403840512,-153.0,0.0003789,30]
[359885058,1746403840522,-153.0,0.0003789,30]
[359885060,1746403840531,-153.0,0.0003789,30]
[359885062,1746403840541,-153.0,0.0003789,30]
[359885064,1746403840549,-500.0,0.00037973,5]
[359885066,1746403840559,-500.0,0.00037973,5]
[359885068,1746403840569,-500.0,0.00037973,5]
[359885070,1746403840581,-505.23910651,0.00037973,5]
[359885072,1746403840592,-500.0,0.00037973,5]
[359885074,1746403840601,-500.0,0.00037973,5]
[359885076,1746403840611,-151.0,0.00038,2]
[359885078,1746403840620,-2000.0,0.00038,120]
[359885080,1746403840630,-2000.0,0.00038,120]
[359885082,1746403840640,-303.07899281,0.00038,2]
[359885084,1746403840651,-8592.66313166,0.00038,2]
[359885086,1746403840661,-20397.45294339,0.00038,120]
[359885088,1746403840672,-174426.37381936,0.00038,4]
[359885090,1746403840682,-151.0,0.00038,14]
[359885092,1746403840692,-330407.559887,0.00038,2]
[359885094,1746403840703,-191.860782,0.00038,14]
[359885096,1746403840713,-191.860782,0.00038,14]
[359885098,1746403840723,-787.0,0.00038,2]
[359885100,1746403840733,-1635.0,0.00038,2]
[359885102,1746403840743,-151.0,0.00038,14]
[359885104,1746403840752,-151.0,0.00038,14]
[359885106,1746403840763,-151.0,0.00038,20]
[359885108,1746403840772,-1430.0,0.00038,2]
[359885110,1746403840782,-450.067054,0.00038,14]
[359885112,1746403840792,-450.067054,0.00038,14]
[359885114,1746403840801,-160.0,0.00038,30]
[359885116,1746403840810,-160.0,0.00038,120]
[359885118,1746403840820,-151.0,0.00038,14]
[359885120,1746403840829,-151.0,0.00038,14]
[359885122,1746403840838,-160.0,0.00038,120]
[359885124,1746403840848,-151.0,0.00038,14]
[359885126,1746403840858,-154.922546,0.00038,14]
[359885128,1746403840867,-151.0,0.00038,14]
[359885130,1746403840877,-151.0,0.00038,14]
[359885132,1746403840887,-258.474886,0.00038,14]
[359885134,1746403840899,-182.19332975,0.00038,120]
[359885136,1746403840908,-151.0,0.00038,14]
[359885138,1746403840918,-151.0,0.00038,14]